bitfinex/quotes_SOLUSD_20240603
["timestamp","ask_amount","ask_price","bid_price","bid_amount"]
[1717442555589,2.2259,166.22,166.21,0.2]
[1717442561179,2.2259,166.22,166.21,7.23]
[1717442561574,2.2259,166.22,166.21,0.2]
[1717442566004,2.2259,166.22,166.21,7.23]
[1717442572686,2.2259,166.22,166.21,0.2]
[1717442574601,2.2255,166.26,166.22,2.2258]
[1717442574811,2.2255,166.26,166.23,7.03]
[1717442575613,2.2255,166.26,166.23,9.2557]
[1717442575818,2.2255,166.26,166.24,7.03]
[1717442576197,2.2255,166.26,166.21,2.426]
[1717442576397,2.2255,166.26,166.23,7.03]
[1717442580999,2.2255,166.26,166.22,2.2259]
[1717442581205,2.2255,166.26,166.22,9.2559]
[1717442581417,2.2255,166.26,166.22,7.03]
[1717442581931,2.2258,166.23,166.21,0.2]
[1717442582310,2.2258,166.23,166.21,9.456]
[1717442583020,2.2258,166.23,166.22,7.03]
[1717442583407,2.2258,166.23,166.21,9.456]
[1717442584519,2.2258,166.23,166.22,7.03]
[1717442585127,2.2254,166.26,166.22,9.2559]
[1717442586227,2.2254,166.26,166.23,7.03]
[1717442588741,2.2254,166.26,166.22,9.2559]
[1717442588925,2.2254,166.26,166.22,7.03]
[1717442590641,2.2254,166.26,166.21,2.426]
[1717442590822,2.2254,166.26,166.22,9.90082649]
[1717442591023,2.2254,166.26,166.22,7.03]
[1717442591232,2.2254,166.26,166.23,2.87086587]
[1717442591733,2.2254,166.26,166.22,54.90086587]
[1717442591937,2.2254,166.26,166.23,2.87086587]
[1717442601255,2.2254,166.26,166.24,2.87086587]
[1717442601424,2.2254,166.26,166.23,2.87086587]
[1717442601620,2.2254,166.26,166.24,2.87086587]
[1717442601821,2.2254,166.26,166.23,2.87086587]
[1717442602023,2.2254,166.26,166.24,2.87086587]
[1717442602325,2.2254,166.26,166.22,45.0]
[1717442602526,2.2254,166.26,166.23,2.87000557]
[1717442602724,2.2254,166.26,166.24,2.87000557]
[1717442602927,2.2254,166.26,166.23,2.87000557]
[1717442603131,2.2254,166.26,166.24,2.87000557]
[1717442603343,2.2254,166.26,166.23,2.87000557]
[1717442603643,2.2254,166.26,166.24,2.87000557]
[1717442603826,2.2254,166.26,166.23,2.87000557]
[1717442604124,2.2254,166.26,166.24,2.87000557]
[1717442604325,2.2254,166.26,166.23,2.87000557]
[1717442604526,2.2254,166.26,166.24,2.86935987]
[1717442604748,2.2254,166.26,166.23,2.86935987]
[1717442604947,2.2254,166.26,166.24,2.86935987]
[1717442605147,2.2254,166.26,166.23,2.86935987]
[1717442605351,2.2254,166.26,166.24,2.86935987]
[1717442605530,2.2254,166.26,166.23,2.86935987]
[1717442605847,2.2254,166.26,166.24,2.86935987]
[1717442606150,2.2254,166.26,166.22,52.03]
[1717442606342,2.2254,166.26,166.23,2.8693309]
[1717442606542,2.2254,166.26,166.24,2.8693309]
[1717442606845,2.2254,166.26,166.22,52.03]
[1717442607046,2.2254,166.26,166.23,2.86931924]
[1717442607250,2.2254,166.26,166.24,2.86931924]
[1717442607442,2.2254,166.26,166.22,52.03]
[1717442607643,2.2254,166.26,166.23,2.86925466]
[1717442607845,2.2254,166.26,166.24,2.86925466]
[1717442608055,2.2254,166.26,166.23,2.86925466]
[1717442608349,2.2254,166.26,166.24,2.86925466]
[1717442608530,2.2254,166.26,166.23,2.86925466]
[1717442608730,2.2254,166.26,166.24,2.8692626]
[1717442608930,2.2254,166.26,166.23,2.8692626]
[1717442609148,2.2254,166.26,166.24,2.8692626]
[1717442609326,2.2254,166.26,166.23,2.8692626]
[1717442609527,2.2254,166.26,166.24,2.8692626]
[1717442609729,2.2254,166.26,166.22,52.03]
[1717442610039,2.2254,166.26,166.23,2.86921161]
[1717442610229,2.2254,166.26,166.24,2.86921161]
[1717442610429,2.2254,166.26,166.23,2.86921161]
[1717442610645,2.2254,166.26,166.24,2.86921161]
[1717442610852,2.2254,166.26,166.23,2.86921161]
[1717442611040,2.2254,166.26,166.24,2.86921161]
[1717442611244,2.2254,166.26,166.23,2.86921161]
[1717442611430,2.2254,166.26,166.24,2.86921161]
[1717442611642,2.2254,166.26,166.23,2.86921161]
[1717442611845,2.2254,166.26,166.24,2.86921161]
[1717442612037,2.2254,166.26,166.22,54.2559]
[1717442612253,2.2254,166.26,166.23,2.86928471]
[1717442612559,2.2254,166.26,166.24,2.86928471]
[1717442612743,2.2254,166.26,166.23,2.86928471]
[1717442613059,2.2254,166.26,166.24,2.86928471]
[1717442613254,2.2254,166.26,166.23,2.86928471]
[1717442613439,15.5725,166.32,166.24,2.86926372]
[1717442613638,2.2251,166.29,166.25,7.03]
[1717442613958,2.2251,166.29,166.26,9.89825075]
[1717442614148,2.2251,166.29,166.26,7.03]
[1717442614537,2.2251,166.29,166.27,8.97777288]
[1717442615957,2.2251,166.29,166.26,7.03]
[1717442616135,2.2251,166.29,166.27,8.97375026]
[1717442616762,2.2251,166.29,166.27,8.9737107]
[1717442617280,2.2251,166.29,166.26,16.0037107]
[1717442617481,2.2251,166.29,166.27,8.9737107]
[1717442617636,2.2251,166.29,166.26,7.03]
[1717442617838,2.2251,166.29,166.28,7.03]
[1717442618752,7.03,166.34,166.28,2.2251]
[1717442619058,2.2246,166.32,166.28,2.225]
[1717442619256,2.2246,166.32,166.31,7.03]
[1717442619555,2.2246,166.32,166.31,7.72902057]
[1717442619864,2.2246,166.32,166.3,7.03]
[1717442621059,2.2246,166.32,166.29,2.225]
[1717442621258,2.2246,166.32,166.29,9.255]
[1717442621557,2.2246,166.32,166.29,2.225]
[1717442621751,2.2246,166.32,166.28,9.255]
[1717442622339,2.2247,166.31,166.24,51.6542]
[1717442622569,2.2247,166.31,166.27,2.2252]
[1717442622745,2.2247,166.31,166.27,47.2252]
[1717442623553,2.2247,166.31,166.27,54.2552]
[1717442628466,2.2247,166.31,166.28,2.2251]
[1717442629564,2.2247,166.31,166.28,9.2551]
[1717442629870,2.2247,166.31,166.28,2.2251]
[1717442630174,2.2247,166.31,166.28,9.2551]
[1717442630784,2.2247,166.31,166.28,7.03]
[1717442632364,2.2247,166.31,166.28,9.2551]
[1717442635464,2.2247,166.31,166.28,2.2251]
[1717442635677,2.2247,166.31,166.28,9.2551]
[1717442637970,2.2247,166.31,166.28,2.2251]
[1717442638171,2.2247,166.31,166.28,9.2551]
[1717442638887,2.2247,166.31,166.28,2.2251]
[1717442639173,2.2247,166.31,166.24,20.0081]
[1717442639361,2.2247,166.31,166.26,2.2253]
[1717442639553,2.2247,166.31,166.26,54.2553]
[1717442639743,2.2247,166.31,166.27,2.2252]
[1717442640367,2.2249,166.3,166.26,2.2254]
[1717442640680,2.225,166.29,166.23,4.4516]
[1717442640979,2.225,166.29,166.25,2.2254]
[1717442641758,2.225,166.29,166.25,47.2254]
[1717442642158,2.225,166.29,166.25,2.2254]
[1717442642677,2.2251,166.28,166.23,2.2257]
[1717442642882,2.2251,166.28,166.23,9.2557]
[1717442643584,2.2251,166.28,166.24,2.2256]
[1717442645366,2.2251,166.28,166.21,4.652]
[1717442645367,2.2251,166.28,166.25,9.2555]
[1717442646358,6.674,166.32,166.27,9.2552]
[1717442646567,2.2247,166.32,166.27,9.2552]
[1717442646775,2.2247,166.32,166.28,7.03]
[1717442647073,2.2247,166.31,166.28,7.03]
[1717442651793,2.2247,166.31,166.26,2.2253]
[1717442651991,2.2247,166.31,166.27,7.03]
[1717442653303,2.2247,166.31,166.26,2.2253]
[1717442653599,2.2247,166.31,166.27,7.03]
[1717442654273,2.2247,166.31,166.28,7.03]
[1717442655205,2.2247,166.31,166.28,2.2251]
[1717442655414,2.2247,166.31,166.29,7.03]
[1717442655894,2.2247,166.31,166.3,7.03]
[1717442656997,2.2247,166.31,166.28,2.2251]
[1717442657178,2.2247,166.31,166.3,7.03]
[1717442665337,2.2243,166.34,166.3,7.03]
[1717442665502,2.2243,166.34,166.31,7.03]
[1717442666333,2.2243,166.34,166.32,7.03]
[1717442668633,2.2243,166.34,166.33,7.03]
[1717442671333,2.2243,166.34,166.31,2.2246]
[1717442671637,2.2243,166.34,166.33,7.03]
[1717442673243,2.2243,166.34,166.3,2.2248]
[1717442673417,2.2243,166.34,166.32,7.03]
[1717442675717,2.2243,166.34,166.3,2.2248]
[1717442676138,6.0717,166.34,166.28,2.2251]
[1717442676323,2.2246,166.32,166.28,2.2251]
[1717442676526,2.2246,166.32,166.28,9.2551]
[1717442677230,2.2246,166.32,166.29,2.86435694]
[1717442677548,2.2246,166.32,166.3,2.86435694]
[1717442677723,2.2246,166.32,166.31,2.86435694]
[1717442679941,2.2242,166.35,166.31,12.11895694]
[1717442680143,2.2242,166.35,166.31,9.2546]
[1717442680351,2.2242,166.35,166.32,2.81760583]
[1717442680551,2.2242,166.35,166.32,9.2546]
[1717442680746,2.2242,166.35,166.33,7.03]
[1717442681082,2.2242,166.35,166.33,9.2544]
[1717442681358,2.2242,166.35,166.34,9.84687867]
[1717442681950,2.2242,166.35,166.34,2.81687867]
[1717442683770,2.2237,166.39,166.34,12.07107867]
[1717442683978,2.2238,166.38,166.35,7.03]
[1717442687145,2.2238,166.38,166.36,7.03]
[1717442689580,2.2238,166.38,166.33,2.2244]
[1717442689785,2.2238,166.38,166.35,7.03]
[1717442690473,2.2238,166.38,166.36,2.81673953]
[1717442690671,2.2238,166.38,166.35,7.03]
[1717442690889,2.2238,166.38,166.36,2.81658302]
[1717442691102,2.2239,166.37,166.33,47.2244]
[1717442691383,2.2239,166.37,166.35,7.03]
[1717442691559,2.2239,166.37,166.36,2.81659751]
[1717442698411,2.2239,166.37,166.35,2.81659751]
[1717442698582,2.2239,166.37,166.36,2.81659751]
[1717442698984,2.2239,166.37,166.35,2.81659751]
[1717442699206,2.2239,166.37,166.36,2.81659751]
[1717442699413,2.2239,166.37,166.35,2.81659751]
[1717442699611,2.2239,166.37,166.36,2.81659751]
[1717442700823,2.2239,166.37,166.34,9.2543]
[1717442701003,2.2239,166.37,166.34,2.2243]
[1717442701200,2.2239,166.37,166.35,2.81703644]
[1717442701401,2.2239,166.37,166.36,2.81703644]
[1717442709225,2.2239,166.37,166.33,5.04143644]
[1717442709399,2.2239,166.37,166.34,2.81703644]
[1717442709600,2.2239,166.37,166.35,2.81703644]
[1717442709907,2.2239,166.37,166.36,2.81703644]
[1717442711525,2.2239,166.37,166.33,2.2244]
[1717442711729,2.2239,166.37,166.34,2.80593135]
[1717442715330,2.2239,166.37,166.34,5.03023135]
[1717442715510,2.2239,166.37,166.35,2.80593135]
[1717442716815,2.2239,166.37,166.34,2.80593135]
[1717442717715,2.2239,166.37,166.35,2.2241]
[1717442720149,2.2239,166.37,166.34,9.2542]
[1717442720319,2.2239,166.37,166.35,2.80614866]
[1717442723652,2.2239,166.37,166.34,2.80614866]
[1717442723819,2.2239,166.37,166.34,2.2243]
[1717442724353,2.2239,166.37,166.35,2.80663142]
[1717442725252,2.2239,166.37,166.34,9.2543]
[1717442725465,2.2239,166.37,166.35,2.80616906]
[1717442725633,2.2239,166.37,166.36,2.80616906]
[1717442725833,2.2239,166.37,166.35,2.80616906]
[1717442726041,2.2239,166.37,166.36,2.80616906]
[1717442733864,2.2239,166.37,166.28,4.4502]
[1717442733865,2.2242,166.35,166.3,2.2248]
[1717442734043,2.2242,166.35,166.31,5.0324789]
[1717442734237,2.2242,166.35,166.32,5.0323789]
[1717442734566,2.2242,166.35,166.33,12.0621789]
[1717442734748,2.2242,166.35,166.34,2.8077789]
[1717442735763,2.2242,166.35,166.33,7.03]
[1717442736060,2.2242,166.35,166.32,9.2545]
[1717442738959,2.2242,166.35,166.34,7.03]
[1717442741360,2.2242,166.35,166.33,7.03]
[1717442742167,2.2242,166.35,166.32,2.2245]
[1717442742342,2.2242,166.35,166.33,7.03]
[1717442745762,2.2242,166.35,166.32,2.2245]
[1717442745967,2.2242,166.35,166.33,7.03]
[1717442747350,2.2237,166.39,166.31,126.0513]
[1717442747558,0.03752584,166.4,166.35,16.00431718]
[1717442747757,2.2238,166.38,166.35,16.00431718]
[1717442747951,2.2238,166.38,166.36,16.00431718]
[1717442748449,2.2239,166.37,166.36,8.97431718]
[1717442752578,2.2239,166.37,166.36,8.96883017]
[1717442756792,9.2539,166.37,166.36,8.96883017]
[1717442756963,9.2539,166.37,166.35,8.96883017]
[1717442757688,2.2239,166.37,166.35,8.96883017]
[1717442758091,2.2239,166.37,166.36,8.96883017]
[1717442758978,2.2239,166.37,166.34,2.2243]
[1717442758979,2.2239,166.37,166.35,8.96883017]
[1717442763081,2.2239,166.37,166.36,52.03]
[1717442763782,0.03752584,166.4,166.36,54.254]
[1717442763983,0.03752584,166.4,166.39,2.2236]
[1717442764298,0.03752584,166.4,166.39,9.2536]
[1717442764477,0.03752584,166.4,166.39,60.4416]
[1717442766479,0.03752584,166.4,166.39,53.4116]
[1717442766690,0.03752584,166.4,166.39,60.4416]
[1717442769105,0.03752584,166.4,166.39,69.40395731]
[1717442769402,0.03752584,166.4,166.39,62.37395731]
[1717442769607,0.03752584,166.4,166.39,69.40395731]
[1717442772110,0.03752584,166.4,166.39,60.4416]
[1717442774079,0.03752584,166.4,166.39,87.7207]
[1717442774296,0.03752584,166.4,166.39,132.58875731]
[1717442774992,0.03752584,166.4,166.39,134.99391231]
[1717442776213,0.03752584,166.4,166.39,126.031555]
[1717442778314,0.2,166.44,166.43,2.2231]
[1717442778514,0.2,166.44,166.43,47.2231]
[1717442778728,0.2,166.44,166.43,54.2531]
[1717442779199,0.2,166.44,166.43,47.2231]
[1717442779498,0.2,166.44,166.43,54.2531]
[1717442784625,0.5144412,166.46,166.45,2.2228]
[1717442784822,0.5144412,166.46,166.45,9.2528]
[1717442785021,0.5144412,166.46,166.45,7.03]
[1717442785230,0.5144412,166.46,166.45,52.03]
[1717442785626,0.5144412,166.46,166.45,54.2528]
[1717442786711,0.5144412,166.46,166.45,52.03]
[1717442788640,0.5144412,166.46,166.45,54.2528]
[1717442790840,0.5144412,166.46,166.45,45.0]
[1717442791419,0.5144412,166.46,166.45,52.03]
[1717442791632,0.5144412,166.46,166.43,2.223]
[1717442791819,0.5144412,166.46,166.44,7.03]
[1717442792014,0.5144412,166.46,166.43,2.223]
[1717442792238,2.7371412,166.46,166.41,2.2233]
[1717442792742,2.7371412,166.46,166.43,7.03]
[1717442794624,2.7371412,166.46,166.42,2.2232]
[1717442795152,2.7371412,166.46,166.43,7.03]
[1717442795850,2.7371412,166.46,166.43,9.2531]
[1717442796030,2.7371412,166.46,166.44,7.03]
[1717442797227,2.7371412,166.46,166.43,2.2231]
[1717442797549,2.7371412,166.46,166.44,7.03]
[1717442797746,2.7371412,166.46,166.41,47.2233]
[1717442798051,8.9957412,166.46,166.41,54.2533]
[1717442798734,8.9957412,166.46,166.41,2.2233]
[1717442798922,8.9957412,166.46,166.41,9.2533]
[1717442799631,8.9957412,166.46,166.42,7.03]
[1717442801945,2.7371412,166.46,166.42,9.2532]
[1717442802258,2.7371412,166.46,166.43,7.03]
[1717442804245,2.7371412,166.46,166.41,2.2233]
[1717442804428,2.7371412,166.46,166.43,7.03]
[1717442805932,2.7371412,166.46,166.42,2.2232]
[1717442806443,2.7371412,166.46,166.44,7.03]
[1717442818181,0.5144412,166.46,166.45,2.2228]
[1717442818471,0.5144412,166.46,166.45,60.581]
[1717442818977,0.5144412,166.46,166.45,63.37864247]
[1717442820356,0.5144412,166.46,166.45,56.51864247]
[1717442820569,0.5144412,166.46,166.45,63.54864247]
[1717442822975,0.2,166.54,166.53,2.2218]
[1717442823293,0.2,166.54,166.53,7.03]
[1717442825381,0.2,166.54,166.52,2.2219]
[1717442825754,0.2,166.54,166.53,2.2218]
[1717442826489,0.2,166.54,166.52,2.2219]
[1717442826958,0.2,166.54,166.53,2.2218]
[1717442829379,0.2,166.54,166.53,9.2518]
[1717442829691,0.2,166.54,166.53,54.2518]
[1717442838093,0.2,166.54,166.52,2.2219]
[1717442838301,0.2,166.54,166.52,9.2519]
[1717442838505,0.2,166.54,166.51,45.0]
[1717442839009,0.2,166.54,166.51,47.222]
[1717442839186,0.2,166.54,166.52,2.2219]
[1717442840002,0.2,166.54,166.52,9.2519]
[1717442842005,0.2,166.54,166.51,54.252]
[1717442843500,0.2,166.54,166.52,2.2219]
[1717442844781,2.4217,166.54,166.49,2.2222]
[1717442844981,2.2222,166.51,166.46,9.2527]
[1717442845195,2.2222,166.51,166.45,8.94345743]
[1717442845196,2.2224,166.49,166.45,8.94345743]
[1717442845407,2.2224,166.49,166.46,2.2226]
[1717442847891,2.2224,166.49,166.46,9.2526]
[1717442848611,2.2224,166.49,166.47,2.2226]
[1717442849006,2.2224,166.49,166.46,9.2526]
[1717442850018,2.2224,166.49,166.47,2.2226]
[1717442850198,2.2224,166.49,166.47,9.2526]
[1717442850394,2.222,166.52,166.48,7.03]
[1717442852221,2.222,166.52,166.48,9.2524]
[1717442852523,2.222,166.52,166.49,7.03]
[1717442856335,2.222,166.52,166.5,7.03]
[1717442861134,2.222,166.51,166.49,15.9758458]
[1717442863221,2.222,166.51,166.5,8.9458458]
[1717442866440,2.222,166.51,166.47,9.2526]
[1717442866751,2.222,166.51,166.48,2.79823023]
[1717442867943,2.222,166.51,166.48,5.02063023]
[1717442868242,2.222,166.51,166.48,9.2524]
[1717442872355,2.222,166.51,166.48,7.03]
[1717442872521,2.222,166.51,166.48,9.2524]
[1717442876455,2.222,166.51,166.49,2.79726689]
[1717442879137,2.222,166.51,166.49,9.82726689]
[1717442879467,2.222,166.51,166.47,2.2225]
[1717442879634,2.222,166.51,166.48,2.7968484]
[1717442879835,2.222,166.51,166.49,7.03]
[1717442880239,2.222,166.51,166.47,2.2225]
[1717442880540,2.222,166.51,166.49,7.03]
[1717442882560,2.222,166.51,166.47,2.2225]
[1717442882748,2.222,166.51,166.49,7.03]
[1717442883958,2.222,166.51,166.48,2.2224]
[1717442884160,2.222,166.51,166.5,7.03]
[1717442884542,2.222,166.51,166.44,120.0]
[1717442884751,2.222,166.51,166.5,7.03]
[1717442890479,2.222,166.51,166.48,2.2224]
[1717442890665,2.222,166.51,166.5,7.03]
[1717442890859,2.222,166.51,166.45,45.0]
[1717442891057,2.222,166.51,166.49,7.03]
[1717442892252,2.222,166.51,166.47,2.2225]
[1717442892451,2.222,166.51,166.49,7.03]
[1717442893779,2.222,166.51,166.5,7.03]
[1717442893970,4.4437,166.53,166.45,2.2228]
[1717442894277,2.2223,166.49,166.46,7.03]
[1717442894579,2.2223,166.49,166.47,7.03]
[1717442896976,2.2223,166.49,166.48,7.03]
[1717442898561,2.2219,166.52,166.48,52.03]
[1717442898783,2.2219,166.52,166.5,7.03]
[1717442900596,2.222,166.51,166.46,2.2226]
[1717442900769,2.2222,166.5,166.47,7.03]
[1717442901405,2.2222,166.5,166.45,2.2228]
[1717442901589,2.2222,166.5,166.47,7.03]
[1717442902371,2.2222,166.5,166.45,2.2228]
[1717442902562,2.2222,166.5,166.47,7.03]
[1717442903804,2.2223,166.49,166.42,4.4464]
[1717442903968,2.2226,166.47,166.41,6.1616]
[1717442904164,2.2227,166.46,166.44,7.03]
[1717442904500,2.2227,166.46,166.45,7.03]
[1717442904866,2.2227,166.46,166.43,2.2231]
[1717442905083,2.2227,166.46,166.4,4.4469]
[1717442905084,2.2227,166.46,166.4,28.12]
[1717442905273,2.2227,166.46,166.44,7.03]
[1717442905490,2.2227,166.46,166.42,2.2232]
[1717442905793,2.2227,166.46,166.44,7.03]
[1717442907080,2.2227,166.46,166.43,2.2231]
[1717442907399,2.2227,166.46,166.44,7.03]
[1717442908301,2.2227,166.46,166.43,2.2231]
[1717442908588,2.2227,166.46,166.44,7.03]
[1717442908915,2.2227,166.46,166.43,7.03]
[1717442909098,2.2227,166.46,166.41,2.2233]
[1717442909285,2.2227,166.46,166.43,7.03]
[1717442910586,2.2227,166.46,166.42,2.2232]
[1717442910779,2.2227,166.46,166.43,7.03]
[1717442910979,2.2227,166.46,166.42,9.2532]
[1717442911188,2.2227,166.46,166.43,7.03]
[1717442911480,2.2227,166.46,166.45,7.03]
[1717442924528,2.2227,166.46,166.44,2.2229]
[1717442924728,2.2227,166.46,166.45,7.03]
[1717442931517,2.2227,166.46,166.42,2.2232]
[1717442931745,2.2227,166.46,166.45,7.03]
[1717442933124,2.2227,166.46,166.43,2.19302]
[1717442933449,2.2228,166.46,166.42,45.0]
[1717442933655,2.2228,166.46,166.45,7.03]
[1717442935125,2.2228,166.46,166.43,2.2231]
[1717442935340,2.2228,166.46,166.45,7.03]
[1717442938075,2.2228,166.46,166.44,2.223]
[1717442938360,2.2228,166.46,166.45,7.03]
[1717442939043,2.2222,166.5,166.45,7.03]
[1717442939242,2.2222,166.5,166.46,7.03]
[1717442939463,2.2224,166.49,166.46,7.03]
[1717442941345,2.2224,166.49,166.45,7.03]
[1717442942166,2.2224,166.49,166.46,7.03]
[1717442943973,2.2224,166.49,166.47,7.03]
[1717442944149,15.3877,166.54,166.42,45.0]
[1717442944150,6.5006,166.54,166.48,7.03]
[1717442944467,6.5006,166.54,166.5,8.94719792]
[1717442944468,2.2221,166.51,166.5,8.94719792]
[1717442945841,2.2221,166.51,166.5,15.97719792]
[1717442946661,2.2221,166.51,166.5,8.94719792]
[1717442947260,2.2221,166.51,166.5,15.97719792]
[1717442947652,2.2221,166.51,166.5,8.94719792]
[1717442947854,2.2221,166.51,166.5,15.97719792]
[1717442949059,2.2221,166.51,166.5,8.94719792]
[1717442949254,2.2221,166.51,166.5,7.03]
[1717442949473,2.2221,166.51,166.5,8.94556652]
[1717442949668,2.2221,166.51,166.49,7.03]
[1717442951071,2.2221,166.51,166.5,8.94815072]
[1717442951379,2.2221,166.51,166.49,7.03]
[1717442952263,2.2221,166.51,166.47,2.2226]
[1717442952480,2.2221,166.51,166.48,7.03]
[1717442953285,2.2221,166.51,166.47,7.03]
[1717442954775,2.2221,166.51,166.47,9.2525]
[1717442957379,2.2221,166.51,166.48,2.2224]
[1717442957552,2.2221,166.51,166.48,9.2524]
[1717442958089,4.6435,166.54,166.49,7.03]
[1717442958090,0.2,166.54,166.49,7.03]
[1717442958268,2.2222,166.5,166.43,4.4462]
[1717442958465,2.2222,166.5,166.47,2.2225]
[1717442958773,2.2222,166.5,166.48,7.03]
[1717442958962,2.2222,166.5,166.49,7.03]
[1717442959284,2.2222,166.5,166.48,7.03]
[1717442959958,2.2222,166.5,166.47,2.2225]
[1717442960157,2.2222,166.5,166.48,7.03]
[1717442961761,2.2222,166.5,166.47,2.2225]
[1717442961961,2.2222,166.5,166.48,7.03]
[1717442962891,2.2222,166.5,166.47,2.2225]
[1717442963090,2.2222,166.5,166.48,7.03]
[1717442964172,2.2222,166.5,166.49,7.03]
[1717442965079,2.2222,166.5,166.48,2.2224]
[1717442965373,2.2222,166.5,166.49,7.03]
[1717442966373,2.4217,166.54,166.49,9.2523]
[1717442966567,2.4217,166.54,166.5,7.03]
[1717442967391,0.2,166.54,166.53,2.2218]
[1717442967574,0.2,166.54,166.53,9.2518]
[1717442967895,0.2,166.54,166.53,7.03]
[1717442968091,0.2,166.54,166.53,9.2518]
[1717442969292,0.2,166.54,166.53,7.03]
[1717442972597,0.2,166.54,166.51,2.222]
[1717442972899,0.2,166.54,166.53,7.03]
[1717442973200,0.2,166.54,166.5,8.4428]
[1717442973387,0.2,166.54,166.52,7.03]
[1717442973793,0.2,166.54,166.51,7.03]
[1717442974589,0.2,166.54,166.5,2.2221]
[1717442974901,0.2,166.54,166.51,7.03]
[1717442975281,0.2,166.54,166.51,9.252]
[1717442977591,0.2,166.54,166.52,7.03]
[1717442980004,0.2,166.54,166.51,2.222]
[1717442981020,0.2,166.54,166.5,2.2221]
[1717442981196,0.2,166.54,166.51,2.222]
[1717442985835,0.2,166.54,166.5,4.4443]
[1717442986132,0.2,166.54,166.53,2.2218]
[1717442986498,0.2,166.54,166.52,2.2219]
[1717442988302,0.2,166.54,166.51,47.222]
[1717442988603,0.2,166.54,166.51,2.222]
[1717442991510,0.2,166.54,166.52,2.2219]
[1717442996831,0.2,166.54,166.53,16.22576155]
[1717442997026,0.2,166.54,166.53,61.22576155]
[1717442997339,0.2,166.54,166.53,54.2518]
[1717443000321,0.2,166.54,166.53,47.2218]
[1717443000521,0.2,166.54,166.53,54.2518]
[1717443000730,0.2,166.54,166.53,47.2218]
[1717443000915,0.2,166.54,166.53,56.16028437]
[1717443001113,0.2,166.54,166.53,18.19028437]
[1717443002845,0.2,166.54,166.53,11.16028437]
[1717443003027,0.2,166.54,166.53,18.19028437]
[1717443004348,0.2,166.54,166.53,11.16028437]
[1717443004548,0.2,166.54,166.53,18.19028437]
[1717443005046,0.2,166.54,166.53,18.1900914]
[1717443005215,0.2,166.54,166.53,18.19017504]
[1717443005421,0.2,166.54,166.53,2.2218]
[1717443005822,0.2,166.54,166.53,9.2518]
[1717443006436,0.2,166.54,166.53,2.2218]
[1717443006639,0.2,166.54,166.53,9.2518]
[1717443006836,0.2,166.54,166.53,2.2218]
[1717443007032,0.2,166.54,166.53,9.2518]
[1717443008755,0.2,166.54,166.53,54.2518]
[1717443012534,0.2,166.54,166.53,47.2218]
[1717443012737,0.2,166.54,166.53,54.2518]
[1717443013231,0.2,166.54,166.53,57.04763208]
[1717443013556,0.2,166.54,166.53,63.46723208]
[1717443014438,0.2,166.54,166.53,183.46723208]
[1717443014642,0.2,166.54,166.53,187.91083208]
[1717443015161,0.2,166.54,166.53,188.25083208]
[1717443015457,0.2,166.54,166.53,203.80343208]
[1717443015672,0.2,166.54,166.53,67.91083208]
[1717443017359,0.2,166.54,166.53,60.88083208]
[1717443017665,0.2,166.54,166.53,187.91083208]
[1717443018054,0.2,166.54,166.53,188.08083208]
[1717443018257,0.2,166.54,166.53,181.05083208]